Cogmind - Beta 12 *** ADVENTURER MODE // 2023.03.08 @ 22:49:43 Player: Sardaukar Result: Destroyed by L-31 Rogue with Katana Performance ------------- Evolutions (1) 500 Regions Visited (2) 400 Robots Destroyed (53) 265 Value Destroyed (1227) 1227 Prototype IDs (4) 80 Alien Tech Used (0) 0 Bonus (125) 125 TOTAL SCORE: 2597 Bonus ------- High Alert Combat Kills 125 Cogmind --------- Core Integrity 0/400 Matter 107/300 Energy 63/100 System Corruption 0% Temperature Cool (0) Movement Core (350) Ox6 Location -9/Materials Parts ------- > --- POWER (1) -------- (None) > --- PROPULSION (3) --- (None) > --- UTILITY (3) ------ Large Storage Unit > --- WEAPON (2) ------- (None) > --- INVENTORY (15) --- Light Ion Engine Light Ion Engine Heat Sink Peak State ------------ > --- POWER ------------ Light Nuclear Core > --- PROPULSION ------- Aluminum Leg Aluminum Leg > --- UTILITY ---------- Large Storage Unit Visual Processing Unit Light Armor Plating > --- WEAPON ----------- Heavy Assault Rifle Grenade Launcher > --- INVENTORY -------- Ion Engine Light Ion Engine Light Ion Engine Heat Sink Light Assault Rifle Light Assault Rifle [Rating: 12] Favorites ----------- Power Ion Engine Engine Ion Engine Power Core Light Nuclear Core Propulsion Aluminum Leg Leg Aluminum Leg Utility Large Storage Unit Device Sensor Array Storage Large Storage Unit Processor Visual Processing Unit Protection Light Armor Plating Weapon Light Assault Rifle Energy Gun Small Laser Ballistic Gun Light Assault Rifle Launcher Rocket Launcher Build | -11 -10 -9 ------- Run | Jun Mat Mat Slots Evolved 2 | . . 2 Power . | . . . Propulsion 1 | . . 1 Utility 1 | . . 1 Weapon . | . . . Parts Attached 34 | 6 5 23 Power 7 | 1 1 5 Engine 6 | 1 . 5 Core 1 | . 1 . Reactor . | . . . Propulsion 4 | 2 . 2 Treads . | . . . Leg 4 | 2 . 2 Wheel . | . . . Hover . | . . . Flight . | . . . Utility 7 | 1 3 3 Device 2 | . 1 1 Storage 3 | 1 2 . Processor 1 | . . 1 Hackware . | . . . Protection 1 | . . 1 Artifact . | . . . Weapon 16 | 2 1 13 Energy Gun 3 | . . 3 Energy Cannon . | . . . Ballistic Gun 7 | 2 . 5 Ballistic Cannon . | . . . Launcher 6 | . 1 5 Special Weapon . | . . . Impact Weapon . | . . . Slashing Weapon . | . . . Piercing Weapon . | . . . Special Melee Weapon . | . . . Unidentified Prototypes 2 | . . 2 Parts Lost 17 | . . 17 Power 5 | . . 5 Propulsion 4 | . . 4 Utility 2 | . . 2 Weapon 6 | . . 6 Highest Loss Streak 5 | . . 5 To Critical Strikes . | . . . Average Slot Usage (%) 72 | . 89 68 Engine 8 | . 7 8 Core 3 | . 6 2 Leg 18 | . 28 15 Device 4 | . 4 4 Storage 11 | . 14 11 Protection 4 | . . 5 Energy Gun 2 | . . 3 Ballistic Gun 10 | . 17 8 Launcher 8 | . 10 8 Naked Turns . | . . . Heaviest Build 39 | 10 30 39 Greatest Support 30 | 20 20 30 Greatest Overweight (x) 9 | . 1 9 Average Overweight (x) 1 | . . 2 Largest Inventory Capacity 15 | 8 15 15 Average Capacity 14 | 6 14 15 Most Carried 7 | 1 4 7 Average Carried 4 | . 2 5 Final Capacity 15 | 8 15 15 Final Carried 4 | 1 4 3 Class Distribution -------------------- 100% | Mutant Dominant Class ---------------- Mutant | -10/Materials Mutant | -9/Materials Resources | -11 -10 -9 ----------- Run | Jun Mat Mat Matter Collected 941 | 262 79 600 Remotely . | . . . Salvage Created 1152 | 76 341 735 Parts 85 | 3 17 65 Haulers Intercepted 4 | . . 4 Recyclers Shooed 1 | . 1 . Parts Field Recycled . | . . . Retrieved Matter . | . . . Parts Self-Destructed . | . . . Prevented . | . . . Kills | -11 -10 -9 ------- Run | Jun Mat Mat Combat Hostiles Destroyed 29 | . 7 22 Guns 4 | . . 4 AOE 25 | . 7 18 Classes Destroyed 11 | 1 3 7 Worker 3 | . . 3 Builder 3 | . . 3 Tunneler 2 | . 1 1 Hauler 4 | . . 4 Recycler 4 | 1 2 1 Mechanic 2 | . . 2 Watcher 6 | . 1 5 Swarmer 6 | . . 6 Grunt 18 | . 7 11 Duelist 1 | . . 1 Sentry 4 | . . 4 Best Kill Streak 9 | 1 6 9 Combat Bots Only 4 | . 4 3 Max Kills in Single Turn 5 | 1 3 5 Gunslinging . | . . . Exploded 2 | . 1 2 Melee . | . . . Uniques/NPCs Destroyed . | . . . Combat | -11 -10 -9 -------- Run | Jun Mat Mat Damage Taken 1589 | . 209 1380 Core 454 | . 43 411 Absorbed by Shields . | . . . Core Remaining (%) 91 | 100 82 . Volleys Fired 72 | 1 13 58 Largest 2 | 2 1 2 Hottest 66 | 40 30 66 Shots Fired 94 | 2 13 79 Gun 33 | 2 . 31 Cannon . | . . . Launcher 61 | . 13 48 Special . | . . . Kinetic 24 | 2 . 22 Thermal 6 | . . 6 Explosive 61 | . 13 48 Electromagnetic 3 | . . 3 Robot Hit Streak 22 | 2 13 22 Robot Miss Streak 2 | . 1 2 Penetration Max . | . . . Secondary Targets . | . . . Shots Hit Robots 70 | 2 11 57 Core Hits 93 | 2 16 75 Critical Kills . | . . . Critical Parts Destroyed . | . . . Critical Strikes . | . . . Melee Attacks . | . . . Impact . | . . . Slashing . | . . . Piercing . | . . . Sneak Attacks . | . . . Combat Hostiles . | . . . Follow-up Attacks . | . . . Damage Inflicted 3591 | 16 850 2725 Guns 292 | 16 . 276 Cannons . | . . . Explosions 3299 | . 850 2449 Melee . | . . . Ramming . | . . . Kinetic 174 | 16 . 158 Thermal 394 | . 327 67 Explosive 2972 | . 523 2449 Electromagnetic 51 | . . 51 Impact . | . . . Slashing . | . . . Piercing . | . . . Highest Corruption . | . . . Average Corruption . | . . . Corruption Purged . | . . . Corruption Blocked . | . . . Overload Shots . | . . . Overflow Damage 109 | . 84 25 Projectiles . | . . . Explosions 109 | . 84 25 Melee . | . . . Knockbacks . | . . . Impact . | . . . Kinetic . | . . . Secondary . | . . . Self-Inflicted Damage 453 | . 109 344 Shots 23 | . 5 18 Rammed . | . . . Targets Rammed . | . . . Kicked . | . . . Crushed . | . . . Highest Temperature 39 | . 22 39 Average Temperature 11 | . 10 11 Received Heat Transfer 486 | . 90 396 Siege Activations . | . . . Robots Corrupted . | . . . Combat Hostiles . | . . . Parts Fried . | . . . Impact Corruptions . | . . . Robots Melted . | . . . Combat Hostiles . | . . . Parts Melted . | . . . Heat Transferred 400 | . 250 150 Parts Sabotaged . | . . . Parts Stolen . | . . . Parts Stripped . | . . . Power Chain Reactions 1 | . . 1 Missiles Intercepted . | . . . Alert | -11 -10 -9 ------- Run | Jun Mat Mat Peak Influence 718 | 5 354 718 Initial 127 | . 2 127 Average 412 | 1 178 500 Maximum Alert Level 3 | . 1 3 Low Security (%) 26 | 100 51 15 Level 1 15 | . 48 7 Level 2 46 | . . 61 Level 3 11 | . . 14 Level 4 . | . . . Level 5 . | . . . High Security . | . . . Max Security . | . . . Squads Dispatched 5 | . 1 4 Investigation 1 | . 1 . Extermination . | . . . Reinforcement 3 | . . 3 Assault 1 | . . 1 Garrison . | . . . Intercept . | . . . Searches Triggered . | . . . Construction Impeded 2 | . . 2 Haulers Reinforced . | . . . Active Scanning Responses . | . . . Cargo Convoy Interrupts . | . . . Stealth | -11 -10 -9 --------- Run | Jun Mat Mat Distress Signals 2 | . 1 1 Communications Jammed . | . . . Distress Signals . | . . . Times Spotted 46 | . 9 37 Peak Tracking Total 5 | . 4 5 Tactical Retreats 1 | . . 1 Traps | -11 -10 -9 ------- Run | Jun Mat Mat Traps Triggered 2 | . 1 1 Indirectly . | . . . Trap Hack Attempts . | . . . Triggered . | . . . Disarmed . | . . . Reprogrammed . | . . . Reused . | . . . Traps Extracted . | . . . Installed . | . . . Triggered . | . . . Machines | -11 -10 -9 ---------- Run | Jun Mat Mat Machines Disabled 10 | . 5 5 Max in Single Turn 2 | . 2 2 Machines Repaired . | . . . Machines Sabotaged . | . . . Overloaded Fab Kills . | . . . Hacking | -11 -10 -9 --------- Run | Jun Mat Mat Machines Accessed 2 | . 1 1 Terminals 2 | . 1 1 Fabricators . | . . . Repair Stations . | . . . Recycling Units . | . . . Scanalyzers . | . . . Garrison Access . | . . . Total Hacks 10 | . 3 7 Successful 6 | . 3 3 Failed 4 | . . 4 Catastrophic . | . . . Database Lockouts . | . . . Manual 4 | . . 4 Terminals 10 | . 3 7 Fabricators . | . . . Repair Stations . | . . . Recycling Units . | . . . Scanalyzers . | . . . Garrison Access . | . . . Terminal Hacks 6 | . 3 3 Record 1 | . . 1 Prototype ID Bank 1 | . 1 . Branch Access Points 1 | . . 1 Alert Level 3 | . 2 1 Fabricator Hacks . | . . . Repair Station Hacks . | . . . Recycling Unit Hacks . | . . . Scanalyzer . | . . . Garrison Access Hacks . | . . . Unauthorized Hacks . | . . . Terminals . | . . . Fabricators . | . . . Repair Stations . | . . . Recycling Units . | . . . Scanalyzers . | . . . Garrison Access . | . . . Data Cores Recovered . | . . . Used . | . . . Hacking Detections 2 | . 1 1 Full Trace Events . | . . . Feedback Events . | . . . Feedback Blocked . | . . . Robot Schematics Acquired . | . . . Robots Built . | . . . Authchips . | . . . Time . | . . . Total Robot Build Rating . | . . . Part Schematics Acquired . | . . . Parts Built . | . . . Authchips . | . . . Time . | . . . Total Part Build Rating . | . . . Parts Repaired . | . . . Time . | . . . Parts Recycled . | . . . Recycled Matter . | . . . Retrieved Matter . | . . . Retrieved Components . | . . . Parts Scanalyzed . | . . . Part Schematics Acquired . | . . . Parts Damaged . | . . . Bothacking | -11 -10 -9 ------------ Run | Jun Mat Mat Used RIF Installer . | . . . Robots Hacked . | . . . Non-combat . | . . . Combat . | . . . Robot Hacks Applied . | . . . Relay Couplers Released . | . . . Fabnet Peak Effective % . | . . . Robots Rewired . | . . . Allies Hacked . | . . . Hacks Repelled . | . . . Allies | -11 -10 -9 -------- Run | Jun Mat Mat Total Allies . | . . . Largest Group . | . . . Highest-Rated Group . | . . . Highest-Rated Ally . | . . . Total Orders . | . . . Ally Attacks . | . . . Total Damage . | . . . Kills . | . . . Allies Corrupted . | . . . Allies Melted . | . . . Intel | -11 -10 -9 ------- Run | Jun Mat Mat Robot Analysis Total . | . . . Derelict Logs Recovered . | . . . Drone Launches . | . . . Drone Recoveries . | . . . Exploration | -11 -10 -9 ------------- Run | Jun Mat Mat Turns Passed 1240 | 50 262 928 Spaces Moved 474 | 33 122 319 Core 54 | 3 . 51 Treads . | . . . Legs 420 | 30 122 268 Wheels . | . . . Hover . | . . . Flight . | . . . Fastest Speed 50 | 50 120 120 Average Speed 215 | 113 185 237 Slowest Speed 500 | 120 190 500 Overloaded Moves . | . . . Propulsion Burnouts . | . . . Robots Hopped . | . . . Cave-ins Triggered . | . . . Exploration Rate (%) 30 | 3 46 43 Regions Visited 2 Branch Regions . Pre-discovered Areas . | . . . Known Exits Taken . | . . . Unknown Exits Taken 2 | 1 1 . Scrap Searched . | . . . Spaces Dug 6 | . . 6 Terrain Destroyed 271 | . 89 182 Melee . | . . . Projectile . | . . . AOE 271 | . 89 182 Terrain Rammed . | . . . Walls Destroyed . | . . . Machines Disabled . | . . . Actions | -11 -10 -9 --------- Run | Jun Mat Mat Total 595 | 41 144 410 Wait 1 | 1 . . Move 472 | 32 121 319 Hop . | . . . Pick Up 6 | 1 2 3 Fast Attach 18 | 6 2 10 Attach 8 | . 1 7 Detach 2 | . 1 1 Swap 9 | . 2 7 Drop 7 | . 2 5 Fire 72 | 1 13 58 Melee . | . . . Ram . | . . . Kick . | . . . Crush . | . . . Escape Stasis . | . . . Rewire . | . . . Trap . | . . . Miscellaneous . | . . . Route ------- -11/Junkyard -10/Materials (discovered 2 exits: *Mat / [*Min]) -9/Materials (discovered 3 exits: [*Mat] / *Min x2) History --------- Turn | Location | Event 4 | -11/Junkyard | Discovered new exit (range 16) 51 | -11/Junkyard | Entered Materials 133 | -10/Materials | Discovered new exit (range 14) 300 | -10/Materials | Discovered new exit (range 8) 308 | -10/Materials | Build established: Mutant 313 | -10/Materials | Entered another Materials area 313 | -9/Materials | Evolved 2 slots: Propulsion x1, Utility x1 646 | -9/Materials | Discovered new exit (range 16) 703 | -9/Materials | Identified exit to Mines 762 | -9/Materials | Discovered new exit (range 12) 814 | -9/Materials | Lost 4 parts (2p1u1w) 942 | -9/Materials | Lost 3 parts (1p2n) 1113 | -9/Materials | First assault squad dispatched 1220 | -9/Materials | Core integrity fell below 50% 1234 | -9/Materials | Core integrity fell below 20% 1241 | -9/Materials | Destroyed by L-31 Rogue with Katana Last Messages --------------- 01113_ ALERT: Significant disruption in Zone 6Q, assault force dispatched. 01215_ T-07 Excavator is excavating. 01219_ C-30 ARC bursts open, deploying its payload. 01219_ G-47 Trooper unfolds itself. 01219_ L-31 Rogue unfolds itself. 01219_ G-34 Mercenary unfolds itself. 01219_ L-31 Rogue unfolds itself. 01219_ I-25 Savior unfolds itself. 01219_ T-07 Excavator is excavating. 01222_ G-34 Mercenary destroyed. 01227_ Rocket Launcher destroyed. 01228_ T-07 Excavator is excavating. 01231_ Ion Engine destroyed. 01231_ Lgt. Assault Rifle destroyed. 01233_ T-07 Excavator is excavating. 01236_ Lgt. Assault Rifle destroyed. 01237_ T-07 Excavator is excavating. 01238_ Imp. EM Shotgun destroyed. 01241_ T-07 Excavator is excavating. Map ----- +----------------------------------------------------+ | | | | | | | | | | | | | | | | | | | | | ?????????????????????????????????? | | ?????????????????????????????????? | | ?????????????????????????????????? | | ???????????????###########???????? | | ???????????????# #???????? | | ???????????????# #???????? | | ??????########?# #???????? | | ??????# #?# #???????? | | ??????# """ #?# #???????? | | ??????# R" #?# #???????? | | ??????# """ #?# #???????? | | ??????# #?# #???????? | | ??????#! #######+#######?????? | | ???????# ### #?????? | | ???????# ll #?????? | | ???????# @ g%% +?????? | | ???????## #### #?????? | | ???????? ##??## """ #?????? | | ??????? #????# """ #####+# | | ??????# #????# """ # | | ??????# t #????# # | | ??????# ####????# # | | ??????###?????????# # | | ???????????########= ######+###### | | ???????????# [ + =# # | | ???????????#""" #! # """ """ # | | ???????????#""" # # """"""""" # | | ???????????#""" # # " " # | | ???????????# [# # # | | ???????????# # # % # | | ???????????######## + = # | | ??????????????????# ##+######+### | | ?????????####?????# !* # | | ?????????# #### ![### "T" | | ?????????# # | | ?????????# # | | ?????????# # | | ?????????# ###### # !!! | | ?????????###+#?##???# # !!! | | ???????????????? ??# # !!! | +----------------------------------------------------+ Best States ------------- Heat Dissipation 28 Energy Generation 14 Energy Capacity 265 Matter Stores 300 Matter Capacity 300 Sight Range 18 Robot Scan Range 14 Terrain Scan Range 14 Terrain Scan Density 10 Armor Coverage 150 Resistance: KI 20 Resistance: TH 20 Resistance: EX 20 Resistance: EM 20 Resistance: I 20 Resistance: S 20 Resistance: P 20 Evasion (%) 55 Offensive Hacking 10 Item Schematics ----------------- None Robot Schematics ------------------ None Fabricated ------------ Nothing Alien Tech Used ----------------- None Achievements -------------- None Challenges ------------ None Game ------ Seed AluminumNovaSpoofer Manual? 0 Play Time 00:14:24 Cumulative 281.0 hours Start 2023.03.08 @ 22:32:44 End 2023.03.08 @ 22:49:43 Sessions 1 Manual Loads 0 Difficulty Adventurer Special Mode None Game No. 87 Rogue 7 Adventurer 65 Explorer 15 Win Type - Total 7 Types 6/0/1/0/0/0/0/0/0 Lore% 68 Gallery% 76 Achievement% 64 Wizard Run 0 Options --------- ASCII 0 Keyboard 0 Movement Mouse Keybinds 0 Fullscreen 2 Font 20/Terminus Map View 66x50 Tactical HUD 1 Map Filters NONE Filters NONE Steam 1 RUN: 71bc95df-96af-410c-b928-31974b68bf56